Workbook

Sheet ΒΙΒΛΙΟ ΚΑΤΑΧΩΡΗΣΗΣ
A2: ΒΙΒΛΙΟ ΕΙΔΙΚΟΥ ΚΑΘΕΣΤΩΤΟΣ ΜΕΤΑΧΕΙΡΙΣΜΕΝΩΝ ΑΓΑΘΩΝ
A3: Άρθρο 52 §§ 3, 8 ν. 5144/2024 (Φ.Π.Α.) — Καθεστώς Περιθωρίου Κέρδους
A4: Κάθε γραμμή = 1 αγαθό. Συμπληρώστε τις μπλε στήλες. Οι υπολογισμοί γίνονται αυτόματα.
A5: ΣΤΟΙΧΕΙΑ ΑΓΟΡΆΣ | E5: ΚΟΣΤΟΣ ΑΓΟΡΑΣ | H5: ΣΤΟΙΧΕΙΑ ΠΩΛΗΣΗΣ | K5: ΥΠΟΛΟΓΙΣΜΟΣ ΦΠΑ (Αρ. 52 §3) | N5: ΔΙΑΧΕΙΡΙΣΗ
A6: Ημερομηνία Αγοράς | B6: Περιγραφή Αγαθού (Μάρκα/Μοντέλο/Αρ.Πλαισίου) | C6: Αρ. Παραστατικού Αγοράς | D6: Ημ. Παραστατικού Αγοράς | E6: Κόστος Αγοράς (Α) | F6: Πρόσθετα Έξοδα (Β) | G6: Συνολικό Κόστος (Γ=Α+Β) | H6: Αρ. Παραστατικού Πώλησης | I6: Ημ. Παραστατικού Πώλησης | J6: Τιμή Πώλησης (Δ) | K6: Μικτό Περιθώριο (Ε=Δ-Γ) | L6: Καθαρό Περιθώριο (προς ΦΠΑ) | M6: ΦΠΑ 24% (Εμπεριεχόμενος) | N6: Κατάσταση | O6: Παρατηρήσεις
A7: 2026-03-01 | B7: Mercedes C220 - Πλαίσιο: WDB2030421F123456 | C7: ΤΔΑ-500 | D7: 2026-03-01 | E7: 10000 | F7: 1500 | G7: =IF(E7="","",E7+IF(F7="",0,F7)) -> 11500 | H7: ΑΛΠ-102 | I7: 2026-03-15 | J7: 15000 | K7: =IF(OR(J7="",G7=""),"",J7-G7) -> 3500 | L7: =IF(K7="","",IF(K7<=0,0,K7/1.24)) -> 2822.580645 | M7: =IF(L7="","",IF(L7=0,0,L7*0.24)) -> 677.4193548 | N7: =IF(A7="","",IF(J7="","🔵 Σε Εκκρεμότητα",IF(K7<0,"🔴 Ζημία (0 ΦΠΑ)",IF(K7=0,"⚪ Μηδέν","🟢 Πωλήθηκε")))) -> 🟢 Πωλήθηκε | O7: Πώληση σε ιδιώτη
A8: 2026-03-05 | B8: BMW 320d - Πλαίσιο: WBA8C3105FD123789 | C8: ΤΔΑ-501 | D8: 2026-03-05 | E8: 8000 | F8: 800 | G8: =IF(E8="","",E8+IF(F8="",0,F8)) -> 8800 | H8: ΤΠ-103 | I8: 2026-03-20 | J8: 8200 | K8: =IF(OR(J8="",G8=""),"",J8-G8) -> -600 | L8: =IF(K8="","",IF(K8<=0,0,K8/1.24)) -> 0 | M8: =IF(L8="","",IF(L8=0,0,L8*0.24)) -> 0 | N8: =IF(A8="","",IF(J8="","🔵 Σε Εκκρεμότητα",IF(K8<0,"🔴 Ζημία (0 ΦΠΑ)",IF(K8=0,"⚪ Μηδέν","🟢 Πωλήθηκε")))) -> 🔴 Ζημία (0 ΦΠΑ) | O8: ΖΗΜΙΑ - ΦΠΑ=0 (§3 Αρ.52)
A9: 2026-03-10 | B9: Audi A4 - Πλαίσιο: WAUZZZ8K9BA012345 | C9: ΤΔΑ-502 | D9: 2026-03-10 | E9: 12000 | F9: 1200 | G9: 13200 | N9: 🔵 Σε Εκκρεμότητα | O9: Σε εκκρεμότητα - δεν έχει πουληθεί
G72: =IF(E72="","",E72+IF(F72="",0,F72)) ->  | K72: =IF(OR(J72="",G72=""),"",J72-G72) ->  | L72: =IF(K72="","",IF(K72<=0,0,K72/1.24)) ->  | M72: =IF(L72="","",IF(L72=0,0,L72*0.24)) ->  | N72: =IF(A72="","",IF(J72="","🔵 Σε Εκκρεμότητα",IF(K72<0,"🔴 Ζημία (0 ΦΠΑ)",IF(K72=0,"⚪ Μηδέν","🟢 Πωλήθηκε")))) -> 
G136: =IF(E136="","",E136+IF(F136="",0,F136)) ->  | K136: =IF(OR(J136="",G136=""),"",J136-G136) ->  | L136: =IF(K136="","",IF(K136<=0,0,K136/1.24)) ->  | M136: =IF(L136="","",IF(L136=0,0,L136*0.24)) ->  | N136: =IF(A136="","",IF(J136="","🔵 Σε Εκκρεμότητα",IF(K136<0,"🔴 Ζημία (0 ΦΠΑ)",IF(K136=0,"⚪ Μηδέν","🟢 Πωλήθηκε")))) -> 
G200: =IF(E200="","",E200+IF(F200="",0,F200)) ->  | K200: =IF(OR(J200="",G200=""),"",J200-G200) ->  | L200: =IF(K200="","",IF(K200<=0,0,K200/1.24)) ->  | M200: =IF(L200="","",IF(L200=0,0,L200*0.24)) ->  | N200: =IF(A200="","",IF(J200="","🔵 Σε Εκκρεμότητα",IF(K200<0,"🔴 Ζημία (0 ΦΠΑ)",IF(K200=0,"⚪ Μηδέν","🟢 Πωλήθηκε")))) -> 
G264: =IF(E264="","",E264+IF(F264="",0,F264)) ->  | K264: =IF(OR(J264="",G264=""),"",J264-G264) ->  | L264: =IF(K264="","",IF(K264<=0,0,K264/1.24)) ->  | M264: =IF(L264="","",IF(L264=0,0,L264*0.24)) ->  | N264: =IF(A264="","",IF(J264="","🔵 Σε Εκκρεμότητα",IF(K264<0,"🔴 Ζημία (0 ΦΠΑ)",IF(K264=0,"⚪ Μηδέν","🟢 Πωλήθηκε")))) -> 
G328: =IF(E328="","",E328+IF(F328="",0,F328)) ->  | K328: =IF(OR(J328="",G328=""),"",J328-G328) ->  | L328: =IF(K328="","",IF(K328<=0,0,K328/1.24)) ->  | M328: =IF(L328="","",IF(L328=0,0,L328*0.24)) ->  | N328: =IF(A328="","",IF(J328="","🔵 Σε Εκκρεμότητα",IF(K328<0,"🔴 Ζημία (0 ΦΠΑ)",IF(K328=0,"⚪ Μηδέν","🟢 Πωλήθηκε")))) -> 
G392: =IF(E392="","",E392+IF(F392="",0,F392)) ->  | K392: =IF(OR(J392="",G392=""),"",J392-G392) ->  | L392: =IF(K392="","",IF(K392<=0,0,K392/1.24)) ->  | M392: =IF(L392="","",IF(L392=0,0,L392*0.24)) ->  | N392: =IF(A392="","",IF(J392="","🔵 Σε Εκκρεμότητα",IF(K392<0,"🔴 Ζημία (0 ΦΠΑ)",IF(K392=0,"⚪ Μηδέν","🟢 Πωλήθηκε")))) -> 
G456: =IF(E456="","",E456+IF(F456="",0,F456)) ->  | K456: =IF(OR(J456="",G456=""),"",J456-G456) ->  | L456: =IF(K456="","",IF(K456<=0,0,K456/1.24)) ->  | M456: =IF(L456="","",IF(L456=0,0,L456*0.24)) ->  | N456: =IF(A456="","",IF(J456="","🔵 Σε Εκκρεμότητα",IF(K456<0,"🔴 Ζημία (0 ΦΠΑ)",IF(K456=0,"⚪ Μηδέν","🟢 Πωλήθηκε")))) -> 
G520: =IF(E520="","",E520+IF(F520="",0,F520)) ->  | K520: =IF(OR(J520="",G520=""),"",J520-G520) ->  | L520: =IF(K520="","",IF(K520<=0,0,K520/1.24)) ->  | M520: =IF(L520="","",IF(L520=0,0,L520*0.24)) ->  | N520: =IF(A520="","",IF(J520="","🔵 Σε Εκκρεμότητα",IF(K520<0,"🔴 Ζημία (0 ΦΠΑ)",IF(K520=0,"⚪ Μηδέν","🟢 Πωλήθηκε")))) -> 
G584: =IF(E584="","",E584+IF(F584="",0,F584)) ->  | K584: =IF(OR(J584="",G584=""),"",J584-G584) ->  | L584: =IF(K584="","",IF(K584<=0,0,K584/1.24)) ->  | M584: =IF(L584="","",IF(L584=0,0,L584*0.24)) ->  | N584: =IF(A584="","",IF(J584="","🔵 Σε Εκκρεμότητα",IF(K584<0,"🔴 Ζημία (0 ΦΠΑ)",IF(K584=0,"⚪ Μηδέν","🟢 Πωλήθηκε")))) -> 
G648: =IF(E648="","",E648+IF(F648="",0,F648)) ->  | K648: =IF(OR(J648="",G648=""),"",J648-G648) ->  | L648: =IF(K648="","",IF(K648<=0,0,K648/1.24)) ->  | M648: =IF(L648="","",IF(L648=0,0,L648*0.24)) ->  | N648: =IF(A648="","",IF(J648="","🔵 Σε Εκκρεμότητα",IF(K648<0,"🔴 Ζημία (0 ΦΠΑ)",IF(K648=0,"⚪ Μηδέν","🟢 Πωλήθηκε")))) -> 
G712: =IF(E712="","",E712+IF(F712="",0,F712)) ->  | K712: =IF(OR(J712="",G712=""),"",J712-G712) ->  | L712: =IF(K712="","",IF(K712<=0,0,K712/1.24)) ->  | M712: =IF(L712="","",IF(L712=0,0,L712*0.24)) ->  | N712: =IF(A712="","",IF(J712="","🔵 Σε Εκκρεμότητα",IF(K712<0,"🔴 Ζημία (0 ΦΠΑ)",IF(K712=0,"⚪ Μηδέν","🟢 Πωλήθηκε")))) -> 
G776: =IF(E776="","",E776+IF(F776="",0,F776)) ->  | K776: =IF(OR(J776="",G776=""),"",J776-G776) ->  | L776: =IF(K776="","",IF(K776<=0,0,K776/1.24)) ->  | M776: =IF(L776="","",IF(L776=0,0,L776*0.24)) ->  | N776: =IF(A776="","",IF(J776="","🔵 Σε Εκκρεμότητα",IF(K776<0,"🔴 Ζημία (0 ΦΠΑ)",IF(K776=0,"⚪ Μηδέν","🟢 Πωλήθηκε")))) -> 
G840: =IF(E840="","",E840+IF(F840="",0,F840)) ->  | K840: =IF(OR(J840="",G840=""),"",J840-G840) ->  | L840: =IF(K840="","",IF(K840<=0,0,K840/1.24)) ->  | M840: =IF(L840="","",IF(L840=0,0,L840*0.24)) ->  | N840: =IF(A840="","",IF(J840="","🔵 Σε Εκκρεμότητα",IF(K840<0,"🔴 Ζημία (0 ΦΠΑ)",IF(K840=0,"⚪ Μηδέν","🟢 Πωλήθηκε")))) -> 
G904: =IF(E904="","",E904+IF(F904="",0,F904)) ->  | K904: =IF(OR(J904="",G904=""),"",J904-G904) ->  | L904: =IF(K904="","",IF(K904<=0,0,K904/1.24)) ->  | M904: =IF(L904="","",IF(L904=0,0,L904*0.24)) ->  | N904: =IF(A904="","",IF(J904="","🔵 Σε Εκκρεμότητα",IF(K904<0,"🔴 Ζημία (0 ΦΠΑ)",IF(K904=0,"⚪ Μηδέν","🟢 Πωλήθηκε")))) -> 
G968: =IF(E968="","",E968+IF(F968="",0,F968)) ->  | K968: =IF(OR(J968="",G968=""),"",J968-G968) ->  | L968: =IF(K968="","",IF(K968<=0,0,K968/1.24)) ->  | M968: =IF(L968="","",IF(L968=0,0,L968*0.24)) ->  | N968: =IF(A968="","",IF(J968="","🔵 Σε Εκκρεμότητα",IF(K968<0,"🔴 Ζημία (0 ΦΠΑ)",IF(K968=0,"⚪ Μηδέν","🟢 Πωλήθηκε")))) -> 

Sheet ΠΙΝΑΚΑΣ ΕΝΤΟΛΩΝ
A2: 🏠 ΠΙΝΑΚΑΣ ΕΝΤΟΛΩΝ — Βιβλίο Άρθρου 52
A3: Κλικάρετε σε κάθε 'κουμπί' και πατήστε ENTER, ή χρησιμοποιήστε το μενού Εκτελεστής Μακροεντολών (Alt+F8)
B5: ➕ ΝΕΟΣ ΣΤΙΧΟΣ | D5: Δημιουργεί νέα γραμμή καταχώρισης και σετάρει αυτόματα την ημερομηνία αγοράς.
D8: 📌 Μακροεντολή: GotoNextEmptyRow()
B9: 🗑️ ΚΑΘΑΡΙΣΜΟΣ ΓΡΑΜΜΗΣ | D9: Διαγράφει τα δεδομένα της επιλεγμένης γραμμής (με επιβεβαίωση).
D12: 📌 Μακροεντολή: ClearCurrentRow()
B13: 📅 ΦΙΛΤΡΟ ΠΕΡΙΟΔΟΥ | D13: Φιλτράρει τις εγγραφές βάσει ημερολογιακής περιόδου (αρχή - τέλος).
D16: 📌 Μακροεντολή: FilterByPeriod()
B17: 🔄 ΑΦΑΙΡΕΣΗ ΦΙΛΤΡΟΥ | D17: Εμφανίζει ξανά όλες τις εγγραφές (αφαιρεί το τρέχον φίλτρο ημερομηνίας).
D20: 📌 Μακροεντολή: RemoveFilter()
B21: 🧾 ΣΤΟΙΧΕΙΟ ΠΩΛΗΣΗΣ | D21: Εμφανίζει τα στοιχεία για τη σύνταξη τιμολογίου με την υποχρεωτική ένδειξη §52.
D24: 📌 Μακροεντολή: GenerateInvoiceText()
B25: ⚠️ ΕΛΕΓΧΟΣ ΖΗΜΙΩΝ | D25: Εντοπίζει παραδόσεις με αρνητικό περιθώριο (ΦΠΑ=0, μη συμψηφιζόμενες κατά §3).
D28: 📌 Μακροεντολή: CheckNegativeMargins()
B29: 🖨️ ΕΚΤΥΠΩΣΗ ΑΝΑΦΟΡΑΣ | D29: Εκτυπώνει τη Συγκεντρωτική Αναφορά για υποβολή/αρχειοθέτηση.
D32: 📌 Μακροεντολή: PrintSummary()
B33: 📊 ΔΕΙΓΜΑΤΙΚΑ ΔΕΔΟΜΕΝΑ | D33: Εισάγει 3 παραδείγματα (κέρδος / ζημία / απούλητο) για εξοικείωση με το βιβλίο.
D36: 📌 Μακροεντολή: InsertSampleData()
B38: 🖨️ ΚΛΕΙΔΩΜΑ ΚΕΛΙΩΝ | D38: Εκτυπώνει τη Συγκεντρωτική Αναφορά για υποβολή/αρχειοθέτηση.
D41: 📌 Μακροεντολή: Sub LockFormulaCols()
B42: 📊 ΞΕΚΛΕΙΔΩΜΑ ΚΕΛΙΩΝ | D42: Εισάγει 3 παραδείγματα (κέρδος / ζημία / απούλητο) για εξοικείωση με το βιβλίο.
D45: 📌 Μακροεντολή: Sub UnlockSheet()
A47: 📌 ΠΩΣ ΝΑ ΕΝΕΡΓΟΠΟΙΗΣΕΤΕ ΤΙΣ ΜΑΚΡΟΕΝΤΟΛΕΣ
A48: 1. Ανοίξτε το αρχείο .xlsm στο Microsoft Excel.
A49: 2. Εάν εμφανιστεί κίτρινη μπάρα 'Προειδοποίηση Ασφαλείας', κλικάρετε 'Ενεργοποίηση Περιεχομένου'.
A50: 3. Εάν δεν ενεργοποιούνται: Αρχείο → Επιλογές → Κέντρο Αξιοπιστίας → Ρυθμίσεις → Ενεργοποίηση όλων.
A51: 4. Για να εκτελέσετε μακροεντολή: Alt+F8 → επιλέξτε όνομα → Εκτέλεση.
A52: 5. Για να εισάγετε τον κώδικα VBA: Alt+F11 → Insert → Module → Επικολλήστε τον κώδικα.

Sheet ΣΥΓΚΕΝΤΡΩΤΙΚΗ ΑΝΑΦΟΡΑ
A2: ΣΥΓΚΕΝΤΡΩΤΙΚΗ ΑΝΑΦΟΡΑ — Άρθρο 52 Ν. 5144/2024
A3: Αυτόματη ανάκτηση δεδομένων από το Βιβλίο Καταχώρισης
A5: 📊 ΓΕΝΙΚΗ ΣΥΝΟΨΗ
A6: Σύνολο Εγγραφών (Αγορές) | B6: =COUNTA('ΒΙΒΛΙΟ ΚΑΤΑΧΩΡΗΣΗΣ'!A7:A206) -> 3
A7: Πωλήθηκαν (Ολοκληρωμένες) | B7: =COUNTIF('ΒΙΒΛΙΟ ΚΑΤΑΧΩΡΗΣΗΣ'!N7:N206,"*Πωλήθηκε*") -> 1
A8: Σε Εκκρεμότητα (Απούλητα) | B8: =COUNTIF('ΒΙΒΛΙΟ ΚΑΤΑΧΩΡΗΣΗΣ'!N7:N206,"*Εκκρεμότητα*") -> 1
A9: Με Ζημία | B9: =COUNTIF('ΒΙΒΛΙΟ ΚΑΤΑΧΩΡΗΣΗΣ'!N7:N206,"*Ζημία*") -> 1 | C9: Δεν οφείλεται ΦΠΑ
A10: Συνολικό Κόστος Αγορών (Γ) | B10: =SUMIF('ΒΙΒΛΙΟ ΚΑΤΑΧΩΡΗΣΗΣ'!A7:A206,"<>",'ΒΙΒΛΙΟ ΚΑΤΑΧΩΡΗΣΗΣ'!G7:G206) -> 33500
A11: Συνολικές Πωλήσεις (Δ) | B11: =SUMIF('ΒΙΒΛΙΟ ΚΑΤΑΧΩΡΗΣΗΣ'!J7:J206,"<>",'ΒΙΒΛΙΟ ΚΑΤΑΧΩΡΗΣΗΣ'!J7:J206) -> 23200
A12: 💰 ΑΝΑΛΥΣΗ ΠΕΡΙΘΩΡΙΟΥ & ΦΠΑ
A13: Συνολικό Μικτό Περιθώριο (Ε) | B13: =SUMIF('ΒΙΒΛΙΟ ΚΑΤΑΧΩΡΗΣΗΣ'!K7:K206,">0",'ΒΙΒΛΙΟ ΚΑΤΑΧΩΡΗΣΗΣ'!K7:K206) -> 3500 | C13: Μόνο θετικές διαφορές
A14: Συνολικό Καθαρό Περιθώριο | B14: =SUMIF('ΒΙΒΛΙΟ ΚΑΤΑΧΩΡΗΣΗΣ'!L7:L206,">0",'ΒΙΒΛΙΟ ΚΑΤΑΧΩΡΗΣΗΣ'!L7:L206) -> 2822.580645 | C14: Βάση ΦΠΑ
A15: Συνολικός ΦΠΑ Εμπεριεχόμενος | B15: =SUMIF('ΒΙΒΛΙΟ ΚΑΤΑΧΩΡΗΣΗΣ'!M7:M206,">0",'ΒΙΒΛΙΟ ΚΑΤΑΧΩΡΗΣΗΣ'!M7:M206) -> 677.4193548 | C15: Αποδοτέος ΦΠΑ
A16: Μέσο % Περιθωρίου | B16: =IFERROR(SUMIF('ΒΙΒΛΙΟ ΚΑΤΑΧΩΡΗΣΗΣ'!K7:K206,">0",'ΒΙΒΛΙΟ ΚΑΤΑΧΩΡΗΣΗΣ'!K7:K206)/SUMIF('ΒΙΒΛΙΟ ΚΑΤΑΧΩΡΗΣΗΣ'!J7:J206,"<>",'ΒΙΒΛΙΟ ΚΑΤΑΧΩΡΗΣΗΣ'!J7:J206),0) -> 0.150862069
A17: Συνολικές Ζημίες (μη συμψηφιζ.) | B17: =SUMIF('ΒΙΒΛΙΟ ΚΑΤΑΧΩΡΗΣΗΣ'!K7:K206,"<0",'ΒΙΒΛΙΟ ΚΑΤΑΧΩΡΗΣΗΣ'!K7:K206) -> -600 | C17: Δεν συμψηφίζονται (§3)
A19: 📋 ΑΝΑΚΕΦΑΛΑΙΩΣΗ ΓΙΑ ΔΦΑ
A20: ΦΠΑ Περιόδου (αποδοτέος) | B20: =SUMIF('ΒΙΒΛΙΟ ΚΑΤΑΧΩΡΗΣΗΣ'!M7:M206,">0",'ΒΙΒΛΙΟ ΚΑΤΑΧΩΡΗΣΗΣ'!M7:M206) -> 677.4193548 | C20: → Δηλώνεται στη ΔΦΑ
A21: Βάση Επιβολής ΦΠΑ | B21: =SUMIF('ΒΙΒΛΙΟ ΚΑΤΑΧΩΡΗΣΗΣ'!L7:L206,">0",'ΒΙΒΛΙΟ ΚΑΤΑΧΩΡΗΣΗΣ'!L7:L206) -> 2822.580645 | C21: Καθαρό περιθώριο
A22: Επαλήθευση (ΦΠΑ = Βάση×24%) | B22: =IFERROR(SUMIF('ΒΙΒΛΙΟ ΚΑΤΑΧΩΡΗΣΗΣ'!M7:M206,">0",'ΒΙΒΛΙΟ ΚΑΤΑΧΩΡΗΣΗΣ'!M7:M206)/SUMIF('ΒΙΒΛΙΟ ΚΑΤΑΧΩΡΗΣΗΣ'!L7:L206,">0",'ΒΙΒΛΙΟ ΚΑΤΑΧΩΡΗΣΗΣ'!L7:L206),0) -> 0.24 | C22: Πρέπει να είναι 24,00%
A26: ⚠️ ΕΙΔΙΚΕΣ ΠΕΡΙΠΤΩΣΕΙΣ
A27: Πλήθος Ζημιογόνων Παραδόσεων | B27: =COUNTIF('ΒΙΒΛΙΟ ΚΑΤΑΧΩΡΗΣΗΣ'!K7:K206,"<0") -> 1 | C27: Δεν συμψηφίζονται §3
A28: Σύνολο Αρνητικών Διαφορών | B28: =SUMIF('ΒΙΒΛΙΟ ΚΑΤΑΧΩΡΗΣΗΣ'!K7:K206,"<0",'ΒΙΒΛΙΟ ΚΑΤΑΧΩΡΗΣΗΣ'!K7:K206) -> -600 | C28: Μη εκπεστέες ζημίες
A29: Απούλητα Αγαθά — Αξία Κτήσης | B29: =SUMIF('ΒΙΒΛΙΟ ΚΑΤΑΧΩΡΗΣΗΣ'!N7:N206,"*κκρεμ*",'ΒΙΒΛΙΟ ΚΑΤΑΧΩΡΗΣΗΣ'!G7:G206) -> 13200

Sheet ΟΔΗΓΙΕΣ & ΝΟΜΟΘΕΣΙΑ
A2: ΟΔΗΓΙΕΣ ΧΡΗΣΗΣ & ΝΟΜΙΚΟ ΠΛΑΙΣΙΟ
A4: 📌 ΒΑΣΙΚΕΣ ΑΡΧΕΣ (Άρθρο 52 §3)
A5: 1. Η φορολογητέα αξία είναι το ΠΕΡΙΘΩΡΙΟ ΚΕΡΔΟΥΣ (τιμή πώλησης μείον τιμή αγοράς).
A6: 2. Ο ΦΠΑ είναι ΕΜΠΕΡΙΕΧΟΜΕΝΟΣ στο περιθώριο — υπολογίζεται με εσωτερική υφαίρεση: Περιθώριο / 1,24 × 0,24.
A7: 3. Αρνητικές διαφορές (ζημίες) ΔΕΝ συμψηφίζονται με θετικές από άλλα αγαθά.
A8: 4. Στα παραστατικά πώλησης ΔΕΝ αναγράφεται ξεχωριστά ο ΦΠΑ.
A9: 5. Υποχρεωτική ένδειξη στα τιμολόγια: «Καθεστώς περιθωρίου - Μεταχειρισμένα αγαθά - Άρθρο 52 Ν. 5144/2024»
A11: 📋 ΟΔΗΓΙΕΣ ΣΥΜΠΛΗΡΩΣΗΣ ΒΙΒΛΙΟΥ
A12: • Στήλη Α (Κόστος Αγοράς): Το αντίτιμο που καταβλήθηκε στον προμηθευτή (ιδιώτη ή μεταπωλητή §52).
A13: • Στήλη Β (Πρόσθετα Έξοδα): Τελωνειακά, αμοιβές εκτελωνιστή, μεταφορικά (ΧΩΡΙΣ ΦΠΑ αν εκπίπτει αλλού).
A14: • Στήλη Γ = Α+Β (Συνολικό Κόστος): Υπολογίζεται αυτόματα.
A15: • Τιμή Πώλησης (Δ): Το ΣΥΝΟΛΙΚΟ αντίτιμο που εισπράττεται από τον αγοραστή ΣΥΜΠΕΡΙΛΑΜΒΑΝΟΜΕΝΟΥ ΦΠΑ.
A16: • Μικτό Περιθώριο (Ε = Δ-Γ): Υπολογίζεται αυτόματα. Αν αρνητικό → ΦΠΑ = 0.
A17: • Καθαρό Περιθώριο = Ε/1,24: Η βάση επιβολής ΦΠΑ (χωρίς ΦΠΑ).
A18: • ΦΠΑ 24% = Καθαρό Περιθώριο × 24%: Αποδοτέος ΦΠΑ.
A20: ⚖️ ΝΟΜΙΚΟ ΠΛΑΙΣΙΟ — ΑΡΘΡΟ 52 §8 (ΥΠΟΧΡΕΩΣΕΙΣ)
A21: α) Διακριτή καταχώριση στα λογιστικά αρχεία: ημερομηνία, είδος παραστατικού, είδος, ποσότητα, αξία κατά αγορά και πώληση.
A22: β) Σε συγκεντρωτικές αγορές/πωλήσεις: επιμερισμός αξίας για τον προσδιορισμό περιθωρίου ανά παράδοση.
A23: γ) Στα παραστατικά πωλήσεων: ενσωμάτωση του ΦΠΑ στην τιμή — ΟΧΙ ξεχωριστή ανάλυση ΦΠΑ.
A25: 💡 ΠΑΡΑΔΕΙΓΜΑ ΥΠΟΛΟΓΙΣΜΟΥ
A26: Αγορά αυτοκινήτου: 10.000 € + Εκτελωνισμός: 1.500 € → Συνολικό Κόστος (Γ): 11.500 €
A27: Πώληση: 15.000 € (Δ) → Μικτό Περιθώριο (Ε): 15.000 - 11.500 = 3.500 €
A28: Καθαρό Περιθώριο: 3.500 / 1,24 = 2.822,58 € | ΦΠΑ (εμπεριεχόμενος): 3.500 - 2.822,58 = 677,42 €
A29: Στο τιμολόγιο γράφετε μόνο: 15.000 € με ένδειξη «Καθεστώς Περιθωρίου — Άρθρο 52»
